bitfinex-derivatives/quotes_SOLF0:USTF0_20260220
["timestamp","ask_amount","ask_price","bid_price","bid_amount"]
[1771607290600,9.65049026,84.16,84.09,26.96324152]
[1771607291805,10.6992,84.135,84.09,26.96324152]
[1771607292203,9.65049026,84.16,84.071,26.81214918]
[1771607293508,9.65049026,84.16,84.073,26.9737879]
[1771607294098,10.6992,84.135,84.073,26.9737879]
[1771607294803,10.6976,84.148,84.073,26.9737879]
[1771607295196,10.6976,84.148,84.024,166.651]
[1771607295197,9.65049026,84.16,84.09,26.92658855]
[1771607295802,466.61455492,84.207,84.08,9.65049026]
[1771607295803,10.6951,84.167,84.091,10.7047]
[1771607296006,10.6951,84.167,84.092,26.92658855]
[1771607296408,10.6964,84.158,84.092,26.92658855]
[1771607296711,9.65049026,84.18,84.096,26.92812864]
[1771607296910,10.695,84.168,84.096,26.92812864]
[1771607297108,9.65049026,84.18,84.096,26.92812864]
[1771607297910,9.65049026,84.18,84.08,9.65049026]
[1771607297911,10.695,84.169,84.101,26.90147795]
[1771607298508,10.6964,84.157,84.101,26.90147795]
[1771607298707,9.65049026,84.18,84.101,26.90147795]
[1771607299407,10.6952,84.167,84.103,26.88724272]
[1771607300315,10.6966,84.156,84.103,26.88724272]
[1771607300913,9.65049026,84.16,84.103,26.88724272]
[1771607302311,35.57,84.19,84.103,26.88724272]
[1771607302312,10.6962,84.159,84.103,26.88724272]
[1771607302916,10.6973,84.151,84.103,26.88724272]
[1771607304312,9.68749917,84.17,84.103,26.88724272]
[1771607305814,10.698,84.145,84.103,26.88724272]
[1771607306210,35.57,84.199,84.103,26.88724272]
[1771607306211,9.68749917,84.19,84.103,26.88724272]
[1771607306405,35.57,84.189,84.103,26.88724272]
[1771607307817,35.57,84.189,84.08,9.68749917]
[1771607307818,9.68749917,84.19,84.105,27.05343589]
[1771607308513,9.68749917,84.19,84.112,27.05483871]
[1771607309520,10.696,84.16,84.112,27.05483871]
[1771607309723,9.68749917,84.19,84.112,27.05483871]
[1771607310210,9.68749917,84.19,84.113,27.11548195]
[1771607310807,10.6958,84.162,84.113,27.11548195]
[1771607311214,35.57,84.189,84.113,27.11548195]
[1771607311815,9.68749917,84.17,84.113,27.11548195]
[1771607312717,10.6965,84.157,84.113,27.11548195]
[1771607313513,9.68749917,84.17,84.113,27.11548195]
[1771607313710,35.57,84.195,84.095,27.12706554]
[1771607313711,10.6984,84.142,84.095,27.12706554]
[1771607315717,10.6984,84.142,84.07,9.68749917]
[1771607315718,10.6986,84.14,84.098,27.14072]
[1771607317726,9.68749917,84.18,84.109,27.15045062]
[1771607321026,9.68749917,84.18,84.111,27.15676451]
[1771607321229,21.54735486,84.2,84.111,27.15676451]
[1771607321823,10.6915,84.196,84.142,27.15676451]
[1771607322827,10.6915,84.196,84.145,27.15798227]
[1771607323232,10.6915,84.196,84.147,26.88411881]
[1771607325126,10.6922,84.19,84.147,26.88411881]
[1771607325528,10.6922,84.19,84.148,10.6975]
[1771607325728,10.6922,84.19,84.147,26.88411881]
[1771607325932,8.73581015,84.206,84.126,26.94455243]
[1771607326235,9.68749917,84.19,84.126,26.94455243]
[1771607326433,10.6964,84.158,84.081,26.94455243]
[1771607326930,9.68749917,84.17,84.108,26.6500601]
[1771607326931,10.6953,84.166,84.108,26.6500601]
[1771607327338,9.68749917,84.17,84.108,26.6500601]
[1771607327538,10.6961,84.16,84.11,26.6500601]
[1771607328544,10.6961,84.16,84.116,10.7015]
[1771607328735,10.6961,84.16,84.11,26.6500601]
[1771607328736,9.68749917,84.17,84.117,26.65094161]
[1771607329940,10.696,84.16,84.117,26.65094161]
[1771607330336,9.68749917,84.17,84.118,10.7012]
[1771607330337,10.6951,84.167,84.118,10.7012]
[1771607330537,35.57,84.196,84.079,21.4126]
[1771607330538,9.68749917,84.19,84.119,26.54375737]
[1771607330736,8.78081945,84.189,84.119,26.54375737]
[1771607330935,8.78081945,84.188,84.119,26.54375737]
[1771607331136,8.78081945,84.187,84.119,26.54375737]
[1771607331340,10.6959,84.161,84.119,26.54375737]
[1771607332045,10.6959,84.161,84.121,26.62747574]
[1771607333038,8.76612961,84.16,84.101,26.62747574]
[1771607333340,8.76612961,84.159,84.101,26.62747574]
[1771607333542,9.68749917,84.17,84.101,26.62747574]
[1771607333543,8.76612961,84.158,84.101,26.62747574]
[1771607333840,9.68749917,84.15,84.101,26.62747574]
[1771607334138,8.76612961,84.149,84.101,26.62747574]
[1771607334338,8.76612961,84.148,84.101,26.62747574]
[1771607334534,9.68749917,84.15,84.101,26.62747574]
[1771607334535,8.76039705,84.147,84.101,26.62747574]
[1771607334735,10.6983,84.142,84.101,26.62747574]
[1771607335333,10.6995,84.133,84.101,26.62747574]
[1771607336340,10.6995,84.133,84.075,25.86859022]
[1771607336744,10.6984,84.141,84.075,25.86859022]
[1771607336945,9.68749917,84.14,84.082,25.86859022]
[1771607337541,8.75283326,84.139,84.082,25.86859022]
[1771607337742,8.74741837,84.139,84.082,25.86859022]
[1771607337934,9.68749917,84.14,84.082,25.86859022]
[1771607338644,10.7007,84.123,84.082,25.86859022]
[1771607338844,9.68749917,84.14,84.05,9.68749917]
[1771607338845,8.73973151,84.139,84.051,25.84273318]
[1771607339041,9.68749917,84.12,84.051,25.84273318]
[1771607339433,166.3811,84.161,84.051,25.84273318]
[1771607339434,4.72663971,84.119,84.051,25.84273318]
[1771607339745,9.68749917,84.13,84.051,25.84273318]
[1771607339938,4.72663971,84.129,84.051,25.84273318]
[1771607340340,9.68749917,84.11,84.051,25.84273318]
[1771607340645,10.7051,84.089,84.051,25.84273318]
[1771607341141,10.7066,84.077,84.051,25.84273318]
[1771607342341,9.68749917,84.11,84.02,20.76843496]
[1771607342342,10.7083,84.064,84.02,20.76843496]
[1771607342543,12.14674747,84.064,84.02,20.76843496]
[1771607342750,9.68749917,84.08,84.02,20.76843496]
[1771607343238,4.27146991,84.084,84.02,20.76843496]
[1771607343438,16.30351285,84.084,84.02,20.76843496]
[1771607343840,3.05531349,84.079,84.02,20.76843496]
[1771607344245,10.7082,84.065,84.02,20.76843496]
[1771607344448,3.05531349,84.079,84.02,20.76843496]
[1771607344748,10.7085,84.062,84.02,20.76843496]
[1771607344944,3.05531349,84.079,84.02,20.76843496]
[1771607345741,12.03204294,84.084,84.005,21.40886805]
[1771607345742,3.07090724,84.059,84.005,21.40886805]
[1771607346441,3.07090724,84.059,83.98,21.74378679]
[1771607346651,9.68749917,84.06,83.981,21.74378679]
[1771607346943,3.68294024,84.059,83.994,21.74378679]
[1771607347336,12.03204294,84.084,83.932,453.16777119]
[1771607347337,10.71,84.05,83.998,22.32832876]
[1771607347549,3.70923494,84.076,83.998,22.32832876]
[1771607348249,3.70923494,84.076,83.953,39.73039295]
[1771607348250,9.68749917,84.08,84.001,22.32832876]
[1771607349151,12.03204294,84.084,84.016,22.32832876]
[1771607349152,10.7081,84.065,84.016,22.32832876]
[1771607349744,10.7092,84.057,84.016,22.32832876]
[1771607350048,12.03204294,84.084,84.016,22.32832876]
[1771607350244,3.73071856,84.093,84.016,22.32832876]
[1771607350755,11.9344101,84.093,84.016,22.32832876]
[1771607351049,9.68749917,84.1,84.021,22.32832876]
[1771607351249,10.7061,84.081,84.034,22.32832876]
[1771607351549,9.68749917,84.1,84.034,22.32832876]
[1771607352747,3.70722962,84.099,84.034,22.32832876]
[1771607353346,10.7083,84.064,84.003,22.32832876]
[1771607353653,9.68749917,84.08,84.003,22.32832876]
[1771607354042,4.11690609,84.082,84.003,22.32832876]
[1771607354244,4.11690609,84.082,84.0,9.68749917]
[1771607354245,4.11690609,84.082,84.018,22.32832876]
[1771607354949,11.79546206,84.1,84.02,22.32832876]
[1771607354950,10.7066,84.077,84.02,22.32832876]
[1771607355149,4.16199709,84.099,84.02,22.32832876]
[1771607355542,10.7067,84.076,84.023,22.32832876]
[1771607355746,4.16199709,84.099,84.023,22.32832876]
[1771607356360,13.97868503,84.08,84.023,22.32832876]
[1771607356650,4.29118586,84.079,84.023,22.32832876]
[1771607356853,35.71,84.099,83.986,22.32832876]
[1771607356854,10.7123,84.033,83.986,22.32832876]
[1771607357045,10.7123,84.033,83.928,21.451]
[1771607357046,9.68749917,84.01,83.9,30.40689688]
[1771607357241,9.68749917,84.01,83.901,30.40689688]
[1771607357242,35.71,84.009,83.901,30.40689688]
[1771607357444,21.4199,84.051,83.921,30.40689688]
[1771607357645,9.68749917,84.02,83.941,30.40689688]
[1771607357844,9.68749917,84.04,83.95,9.68749917]
[1771607358050,45.39749917,84.05,83.951,30.40689688]
[1771607358458,9.68749917,84.01,83.951,30.40689688]
[1771607359552,16.78537354,83.989,83.854,21.4701]
[1771607359757,10.7206,83.968,83.902,10.7288]
[1771607360354,10.7217,83.959,83.892,10.7301]
[1771607360551,16.78537354,83.989,83.9,9.68749917]
[1771607360752,10.7216,83.96,83.9,9.68749917]
[1771607361053,16.78537354,83.989,83.9,9.68749917]
[1771607361250,10.7213,83.962,83.901,10.729]
[1771607361453,10.7213,83.962,83.902,22.32832876]
[1771607361644,16.78537354,83.989,83.902,22.32832876]
[1771607361849,9.68749917,83.99,83.902,22.32832876]
[1771607362356,10.7192,83.978,83.915,22.32832876]
[1771607362554,10.7192,83.978,83.921,22.32832876]
[1771607363247,10.7178,83.99,83.924,22.32832876]
[1771607363461,18.37100852,84.005,83.924,22.32832876]
[1771607363755,10.7175,83.992,83.928,22.32832876]
[1771607364251,10.7175,83.992,83.93,22.32832876]
[1771607364653,10.7159,84.004,83.93,22.32832876]
[1771607364957,9.68749917,84.02,83.933,22.32832876]
[1771607365255,10.7154,84.009,83.933,22.32832876]
[1771607365752,10.7154,84.009,83.941,22.32832876]
[1771607366555,10.7164,84.0,83.941,22.32832876]
[1771607366750,19.69479914,84.007,83.941,22.32832876]
[1771607367259,10.7176,83.991,83.941,22.32832876]
[1771607367459,19.83962873,83.989,83.914,22.32832876]
[1771607367651,10.7186,83.983,83.916,22.32832876]
[1771607367851,19.83962873,83.979,83.916,22.32832876]
[1771607368252,10.7181,83.987,83.916,22.32832876]
[1771607368458,19.839632,83.999,83.916,22.32832876]
[1771607368657,10.7178,83.99,83.928,10.7255]
[1771607368858,10.7178,83.99,83.929,22.32832876]
[1771607370164,10.7178,83.99,83.931,22.32832876]
[1771607370556,10.7188,83.981,83.931,22.32832876]
[1771607370762,19.839632,83.999,83.931,22.32832876]
[1771607371258,10.7191,83.979,83.931,22.32832876]
[1771607371463,28.56863157,83.979,83.922,22.32832876]
[1771607371966,17.84953157,83.949,83.868,22.32832876]
[1771607372656,17.84953157,83.949,83.85,9.72012434]
[1771607372657,10.7247,83.935,83.871,22.32832876]
[1771607372853,17.89792148,83.929,83.847,22.32832876]
[1771607373351,19.29410753,83.909,83.848,10.7357]
[1771607373552,19.29410753,83.909,83.849,22.32832876]
[1771607373864,19.29410753,83.928,83.849,22.32832876]
[1771607374062,19.29410753,83.928,83.85,22.32832876]
[1771607374463,10.728,83.91,83.85,22.32832876]
[1771607374663,19.29410753,83.928,83.85,22.32832876]
[1771607375065,10.7266,83.921,83.854,22.32832876]
[1771607375259,9.72012434,83.93,83.854,22.32832876]
[1771607375465,18.58083159,83.947,83.854,22.32832876]
[1771607375865,10.7246,83.936,83.871,22.32832876]
[1771607376462,10.7246,83.936,83.85,9.72012434]
[1771607376463,10.7246,83.936,83.883,22.32832876]
[1771607377073,18.58083159,83.947,83.883,22.32832876]
[1771607377476,18.58083159,83.947,83.851,23.00146909]
[1771607377977,18.89961206,83.946,83.853,23.00146909]
[1771607378174,18.89961206,83.929,83.853,23.00146909]
[1771607378376,10.729,83.902,83.853,23.00146909]
[1771607378573,18.89961206,83.929,83.853,23.00146909]
[1771607378982,10.727,83.917,83.853,23.00146909]
[1771607379175,18.89961206,83.929,83.853,23.00146909]
[1771607380682,9.72012434,83.89,83.831,23.00146909]
[1771607380877,18.717563,83.898,83.831,23.00146909]
[1771607381783,10.7308,83.888,83.831,23.00146909]
[1771607382185,18.82147544,83.917,83.831,23.00146909]
[1771607382387,22.26343471,83.9,83.75,21.4967]
[1771607382686,10.7348,83.856,83.793,10.7427]
[1771607383086,10.7348,83.856,83.8,9.72012434]
[1771607383286,22.26343471,83.887,83.8,9.72012434]
[1771607383484,22.26343471,83.887,83.751,35.71]
[1771607383485,22.26343471,83.869,83.725,188.7498]
[1771607383785,22.26343471,83.869,83.77,9.72012434]
[1771607383986,22.26343471,83.869,83.768,2.07577163]
[1771607384381,22.26343471,83.869,83.771,23.00146909]
[1771607384582,22.26343471,83.869,83.772,23.00146909]
[1771607384783,22.26343471,83.849,83.772,23.00146909]
[1771607384983,10.7383,83.829,83.772,23.00146909]
[1771607385185,22.26343471,83.869,83.772,23.00146909]
[1771607385887,22.26343471,83.869,83.792,23.00146909]
[1771607386389,10.7345,83.858,83.801,23.00146909]
[1771607386780,22.26343471,83.885,83.801,23.00146909]
[1771607387489,22.26343471,83.885,83.805,23.00146909]
[1771607388179,10.7341,83.861,83.805,23.00146909]
[1771607388584,10.733,83.87,83.811,23.00146909]
[1771607389286,10.733,83.87,83.814,23.00146909]
[1771607389691,10.7319,83.879,83.814,23.00146909]
[1771607390080,10.7319,83.879,83.826,23.00146909]
[1771607390683,10.7308,83.888,83.829,23.00146909]
[1771607390892,22.26343471,83.901,83.775,167.1466]
[1771607390893,22.26343471,83.901,83.831,23.00146909]
[1771607391093,22.26343471,83.929,83.831,23.00146909]
[1771607391291,22.26343471,83.929,83.848,23.00146909]
[1771607392094,22.26343471,83.912,83.848,23.00146909]
[1771607392886,22.26343471,83.889,83.797,23.00146909]
[1771607393499,10.7337,83.865,83.808,23.00146909]
[1771607393688,22.26343471,83.889,83.808,23.00146909]
[1771607393889,10.7313,83.883,83.811,23.00146909]
[1771607394188,22.26343471,83.889,83.811,23.00146909]
[1771607395786,35.71,83.911,83.811,23.00146909]
[1771607395787,22.26343471,83.865,83.811,23.00146909]
[1771607396192,22.26343471,83.865,83.811,33.74196909]
[1771607396492,22.26343471,83.865,83.811,23.00146909]
[1771607397695,22.26343471,83.865,83.819,10.7394]
[1771607398194,22.26343471,83.865,83.811,23.00146909]
[1771607398698,22.26343471,83.889,83.811,23.00146909]
[1771607398992,22.26343471,83.889,83.82,33.74076909]
[1771607399491,10.732,83.878,83.82,33.74076909]
[1771607399695,22.26343471,83.918,83.836,23.00146909]
[1771607399998,22.26343471,83.918,83.841,23.00146909]
[1771607400191,22.26343471,83.918,83.84,9.72012434]
[1771607400192,10.7271,83.917,83.861,10.734]
[1771607400387,10.7271,83.917,83.859,23.00146909]
[1771607400388,22.26343471,83.916,83.84,23.00146909]
[1771607400789,10.7302,83.892,83.84,23.00146909]
[1771607400991,9.72012434,83.92,83.84,23.00146909]
[1771607400992,22.26343471,83.898,83.84,23.00146909]
[1771607401192,22.26343471,83.876,83.82,23.00146909]
[1771607403998,22.26343471,83.876,83.803,23.00146909]
[1771607405506,22.26343471,83.876,83.806,23.00146909]
[1771607405507,10.7347,83.857,83.806,23.00146909]
[1771607406796,10.7347,83.857,83.8,9.72012434]
[1771607406797,10.7335,83.867,83.808,23.62164249]
[1771607406992,22.26343471,83.876,83.808,23.62164249]
[1771607408218,9.72012434,83.9,83.808,23.62164249]
[1771607408400,23.60079769,83.899,83.821,23.52408042]
[1771607408599,23.60079769,83.899,83.774,167.1478]
[1771607408600,23.60079769,83.899,83.824,23.52408042]
[1771607408802,23.60079769,83.879,83.808,23.52408042]
[1771607409401,23.60079769,83.858,83.808,23.52408042]
[1771607409605,23.60079769,83.858,83.78,9.72012434]
[1771607409606,23.60079769,83.858,83.781,23.52408042]
[1771607410100,23.60079769,83.858,83.79,23.52408042]
[1771607412410,10.738,83.831,83.79,23.52408042]
[1771607412706,23.60079769,83.842,83.79,23.52408042]
[1771607412906,23.60079769,83.842,83.775,10.745]
[1771607412907,10.7397,83.818,83.775,10.745]
[1771607413109,23.60079769,83.839,83.774,23.52408042]
[1771607413504,10.742,83.8,83.757,23.52408042]
[1771607413703,23.60079769,83.811,83.757,23.52408042]
[1771607413904,23.60079769,83.828,83.757,23.52408042]
[1771607414607,23.60079769,83.828,83.75,9.72012434]
[1771607414608,23.60079769,83.828,83.767,23.52408042]
[1771607415006,23.60079769,83.828,83.751,23.52408042]
[1771607415209,10.7423,83.798,83.751,23.52408042]
[1771607416308,10.7431,83.791,83.751,23.52408042]
[1771607416812,23.60079769,83.813,83.751,23.52408042]
[1771607417304,23.60079769,83.813,83.754,34.27198042]
[1771607417512,23.60079769,83.813,83.73,71.72012434]
[1771607417513,23.60079769,83.813,83.755,23.52408042]
[1771607418011,10.7412,83.806,83.756,23.52408042]
[1771607418515,10.7422,83.799,83.756,23.52408042]
[1771607419208,23.60079769,83.813,83.756,23.52408042]
[1771607419809,10.7425,83.796,83.756,23.52408042]
[1771607420103,9.72012434,83.83,83.756,23.52408042]
[1771607420305,23.60079769,83.833,83.756,23.52408042]
[1771607420502,23.60079769,83.833,83.762,23.52408042]
[1771607420503,10.7406,83.811,83.762,23.52408042]
[1771607420701,23.60079769,83.833,83.762,23.52408042]
[1771607423215,23.60079769,83.833,83.764,23.52408042]
[1771607423712,9.72012434,83.84,83.765,10.7464]
[1771607423713,34.34009769,83.821,83.765,10.7464]
[1771607424010,23.60079769,83.821,83.765,10.7464]
[1771607425501,34.34009769,83.821,83.765,10.7464]
[1771607425702,23.60079769,83.821,83.775,10.7451]
[1771607426504,23.60079769,83.821,83.749,23.52408042]
[1771607426704,10.7414,83.805,83.749,23.52408042]
[1771607427304,10.7414,83.805,83.75,23.52408042]
[1771607427504,23.60079769,83.806,83.75,23.52408042]
[1771607427710,23.60079769,83.806,83.734,23.52408042]
[1771607428316,23.60079769,83.806,83.747,23.52408042]
[1771607428913,10.7416,83.804,83.747,23.52408042]
[1771607429113,10.7416,83.804,83.754,34.27178042]
[1771607429316,23.60079769,83.806,83.754,23.52408042]
[1771607429817,10.7431,83.791,83.754,23.52408042]
[1771607430117,23.60079769,83.806,83.738,23.52408042]
[1771607430604,23.60079769,83.806,83.747,23.52408042]
[1771607430809,23.60079769,83.806,83.74,9.7716159]
[1771607430810,10.7415,83.804,83.756,23.52408042]
[1771607431016,23.60079769,83.806,83.756,23.52408042]
[1771607432215,23.60079769,83.829,83.756,23.52408042]
[1771607433522,23.60079769,83.829,83.758,23.52408042]
[1771607434924,10.741,83.808,83.761,23.52408042]
[1771607435122,35.71,83.843,83.761,23.52408042]
[1771607435123,23.60079769,83.845,83.761,23.52408042]
[1771607435527,10.7382,83.829,83.789,23.52408042]
[1771607435828,23.60079769,83.845,83.77,23.52408042]
[1771607436422,23.60079769,83.845,83.778,23.52408042]
[1771607438321,23.24161568,83.842,83.778,23.52408042]
[1771607438726,23.24161568,83.842,83.782,22.91692913]
[1771607439825,10.737,83.839,83.785,10.7438]
[1771607440830,35.71,83.859,83.76,9.7716159]
[1771607441033,23.24161568,83.831,83.761,22.91692913]
[1771607441322,10.7406,83.811,83.764,22.91692913]
[1771607441526,23.24161568,83.831,83.764,22.91692913]
[1771607441927,10.7383,83.829,83.779,10.7446]
[1771607442728,10.7392,83.822,83.772,22.91692913]
[1771607443529,10.7383,83.829,83.781,10.7444]
[1771607444123,23.24161568,83.831,83.773,22.91692913]
[1771607444830,10.7397,83.818,83.773,22.91692913]
[1771607445227,23.24161568,83.831,83.773,22.91692913]
[1771607446733,10.7382,83.83,83.782,10.7442]
[1771607447136,23.24161568,83.831,83.782,10.7442]
[1771607447433,23.24161568,83.831,83.773,22.91692913]
[1771607447434,10.7398,83.817,83.775,10.745]
[1771607447635,23.24161568,83.831,83.775,10.745]
[1771607448027,23.24161568,83.831,83.776,22.91692913]
[1771607448627,10.7398,83.817,83.776,22.91692913]
[1771607448829,23.24161568,83.816,83.76,9.7716159]
[1771607449037,23.24161568,83.816,83.758,22.91692913]
[1771607449639,10.7417,83.802,83.762,10.7468]
[1771607450340,10.7417,83.802,83.758,22.91692913]
[1771607450341,10.7429,83.793,83.747,22.91692913]
[1771607450526,23.24161568,83.802,83.747,22.91692913]
[1771607450931,10.742,83.8,83.747,22.91692913]
[1771607451729,10.7428,83.794,83.756,10.7475]
[1771607452235,10.7419,83.801,83.756,10.7475]
[1771607453040,10.7419,83.801,83.747,22.91692913]
[1771607453041,10.7427,83.795,83.749,10.7484]
[1771607453331,23.24161568,83.802,83.75,22.91692913]
[1771607453730,23.24161568,83.819,83.75,22.91692913]
[1771607453938,3.64575165,83.81,83.76,26.56268078]
[1771607454127,10.7415,83.804,83.762,10.7467]
[1771607454735,10.7415,83.804,83.76,26.56268078]
[1771607455738,3.64575165,83.81,83.761,10.7469]
[1771607455939,3.64575165,83.81,83.762,22.91692913]
[1771607456338,26.88736733,83.81,83.762,22.91692913]
[1771607456841,23.24161568,83.819,83.762,22.91692913]
[1771607457137,23.24161568,83.799,83.747,22.91692913]
[1771607457336,26.88736733,83.79,83.74,3.64575165]
[1771607459636,10.7445,83.781,83.744,10.7491]
[1771607459838,26.88736733,83.79,83.74,3.64575165]
[1771607460042,26.88736733,83.79,83.746,41.48055207]
[1771607460245,23.24161568,83.805,83.751,22.91692913]
[1771607460446,23.24161568,83.805,83.76,26.56268078]
[1771607460740,10.7423,83.798,83.76,22.91692913]
[1771607460946,3.64575165,83.79,83.749,22.91692913]
[1771607461341,26.88736733,83.79,83.746,18.56362294]
[1771607461545,26.88736733,83.78,83.746,0.00132294]
[1771607461941,10.7455,83.773,83.746,0.00132294]
[1771607462241,26.88736733,83.77,83.746,0.00132294]
[1771607462443,26.88736733,83.77,83.717,22.91692913]
[1771607462444,23.24161568,83.759,83.69,3.64575165]
[1771607462647,10.89102556,83.802,83.69,3.64575165]
[1771607462648,3.64575165,83.74,83.69,26.56268078]
[1771607462950,23.24161568,83.743,83.69,26.56268078]
[1771607463149,3.64575165,83.74,83.692,10.7557]
[1771607463747,3.64575165,83.75,83.7,26.56268078]
[1771607463949,23.24161568,83.758,83.7,22.91692913]
[1771607464350,23.24161568,83.758,83.71,22.91692913]
[1771607464548,23.24161568,83.758,83.681,22.91692913]
[1771607465353,23.24161568,83.743,83.681,22.91692913]
[1771607466651,10.7504,83.735,83.689,10.7561]
[1771607467151,24.3344847,83.716,83.665,10.7593]
[1771607467457,9.7793233,83.76,83.633,23.6865635]
[1771607467458,24.3344847,83.699,83.633,23.6865635]
[1771607467650,24.3344847,83.699,83.617,23.6865635]
[1771607468153,10.7581,83.675,83.625,10.7644]
[1771607468748,24.3344847,83.682,83.625,10.7644]
[1771607469055,24.3344847,83.682,83.633,10.7634]
[1771607469657,24.3344847,83.682,83.649,0.07558727]
[1771607469855,10.7556,83.694,83.649,0.07558727]
[1771607470245,24.3344847,83.684,83.649,0.07558727]
[1771607470852,24.3344847,83.684,83.611,23.6865635]
[1771607471047,24.3344847,83.684,83.632,10.7635]
[1771607471847,12.17491379,83.699,83.611,23.6865635]
[1771607471848,24.3344847,83.68,83.611,23.6865635]
[1771607472053,24.3344847,83.679,83.611,23.6865635]
[1771607472355,24.3344847,83.658,83.588,23.6865635]
[1771607472943,24.3344847,83.658,83.599,34.4542635]
[1771607472944,35.0947847,83.658,83.599,34.4542635]
[1771607473157,35.0947847,83.658,83.57,9.7793233]
[1771607473158,24.3344847,83.658,83.6,23.6865635]
[1771607473350,24.3344847,83.679,83.6,23.6865635]
[1771607473551,35.71,83.714,83.59,9.7793233]
[1771607473552,10.7564,83.688,83.617,23.6865635]
[1771607473756,432.84485698,83.733,83.631,23.6865635]
[1771607473757,24.3344847,83.719,83.631,23.6865635]
[1771607474145,24.3344847,83.737,83.673,23.6865635]
[1771607474848,9.7793233,83.74,83.673,23.6865635]
[1771607474849,24.3344847,83.734,83.673,23.6865635]
[1771607475549,24.3344847,83.732,83.664,10.7593]
[1771607475745,24.3344847,83.732,83.651,23.6865635]
[1771607476559,24.3344847,83.708,83.653,10.7607]
[1771607476751,9.7793233,83.7,83.63,23.6865635]
[1771607476951,24.3344847,83.699,83.63,23.6865635]
[1771607477357,24.3344847,83.699,83.631,10.7636]
[1771607477358,10.7564,83.688,83.631,10.7636]
[1771607477550,24.3344847,83.688,83.631,10.7636]
[1771607477950,9.7793233,83.7,83.632,23.6865635]
[1771607478162,9.7793233,83.72,83.632,23.6865635]
[1771607478355,24.3344847,83.719,83.632,23.6865635]
[1771607479157,35.0868847,83.719,83.662,34.4461635]
[1771607479459,35.0868847,83.719,83.663,23.6865635]
[1771607479952,24.3344847,83.719,83.669,10.7587]
[1771607480149,24.3344847,83.719,83.663,23.6865635]
[1771607481054,9.7793233,83.74,83.663,23.6865635]
[1771607481055,24.3344847,83.716,83.663,23.6865635]
[1771607482656,10.753,83.714,83.663,23.6865635]
[1771607482860,24.3344847,83.713,83.663,23.6865635]
[1771607483161,24.3344847,83.713,83.665,10.7593]
[1771607483555,24.3344847,83.713,83.657,23.6865635]
[1771607483860,11.75553612,83.747,83.657,23.6865635]
[1771607483861,24.3344847,83.731,83.657,23.6865635]
[1771607484252,35.0887847,83.704,83.657,23.6865635]
[1771607484458,24.3344847,83.704,83.657,23.6865635]
[1771607484752,24.3344847,83.739,83.657,23.6865635]
[1771607484961,24.3344847,83.713,83.657,23.6865635]
[1771607486762,10.7533,83.712,83.657,23.6865635]
[1771607487259,24.3344847,83.713,83.657,23.6865635]
[1771607487662,10.7551,83.698,83.657,23.6865635]
[1771607487958,24.3344847,83.713,83.657,23.6865635]
[1771607488655,24.3344847,83.729,83.657,23.6865635]
[1771607489456,10.7516,83.725,83.676,23.6865635]
[1771607489657,24.3344847,83.725,83.676,23.6865635]
[1771607490161,10.7537,83.709,83.651,23.6865635]
[1771607490360,35.0881847,83.709,83.651,23.6865635]
[1771607490959,24.3344847,83.709,83.664,23.6865635]
[1771607491162,24.3344847,83.725,83.664,23.6865635]
[1771607491863,24.3344847,83.725,83.678,23.6865635]
[1771607492064,24.3344847,83.742,83.678,23.6865635]
[1771607492960,10.7502,83.736,83.686,10.7566]
[1771607493155,24.3344847,83.735,83.678,23.6865635]
[1771607494757,10.7515,83.726,83.678,34.4441635]
[1771607494964,10.7515,83.726,83.678,23.6865635]
[1771607495164,24.3344847,83.735,83.678,23.6865635]
[1771607495364,24.3344847,83.735,83.697,10.7551]
[1771607495562,24.3344847,83.735,83.678,23.6865635]
[1771607495961,24.3344847,83.735,83.689,10.7561]
[1771607496268,24.3344847,83.735,83.656,23.6865635]
[1771607496567,24.3344847,83.712,83.664,10.7594]
[1771607496770,24.3344847,83.712,83.631,23.6865635]
[1771607497867,24.3344847,83.712,83.663,0.07546091]
[1771607498272,10.7539,83.707,83.663,0.07546091]
[1771607498565,35.71,83.749,83.663,0.07546091]
[1771607498566,24.93909721,83.731,83.664,24.97289512]
[1771607498762,10.7543,83.704,83.664,24.97289512]
[1771607498961,24.93909721,83.703,83.663,0.07546091]
[1771607499170,24.93909721,83.703,83.642,24.97289512]
[1771607499670,24.93909721,83.697,83.642,24.97289512]
[1771607500067,24.93909721,83.697,83.664,0.07551633]
[1771607500669,10.7553,83.696,83.664,0.07551633]
[1771607500964,24.93909721,83.696,83.664,0.07551633]
[1771607501564,10.7561,83.69,83.664,0.07551633]
[1771607501761,24.93909721,83.696,83.664,0.07551633]
[1771607502173,10.7564,83.688,83.664,0.07551633]
[1771607502367,10.7564,83.688,83.642,35.73499512]